fUSD/lending_fUSD_20250708
["ID","MTS","AMOUNT","RATE_DAILY","PERIOD"]
[370357408,1751977871890,-1082.34,0.00025037,2]
[370357409,1751977871899,-806.35,0.00025037,2]
[370357410,1751977871910,-460.0,0.00025037,2]
[370357411,1751977872300,-518.2,0.00025037,2]
[370357412,1751977872330,-460.0,0.00025037,2]
[370357413,1751977872342,-480.69,0.00025037,2]
[370357414,1751977872354,-460.0,0.00025037,2]
[370357415,1751977872364,-965.62,0.00025037,2]
[370357416,1751977872373,-637.73,0.00025037,2]
[370357417,1751977872383,-571.35,0.00025037,2]
[370357418,1751977872393,-460.0,0.00025037,2]
[370357419,1751977872403,-540.71,0.00025037,2]
[370357420,1751977872414,-460.0,0.00025037,2]
[370357421,1751977872424,-627.1,0.00025037,2]
[370357422,1751977872434,-151.0,0.00025037,7]
[370357423,1751977872444,-717.49,0.00025037,2]
[370357424,1751977872454,-176.358056,0.00025037,7]
[370357425,1751977872465,-460.0,0.00025037,2]
[370357426,1751977872474,-176.358056,0.00025037,7]
[370357427,1751977872483,-640.21,0.00025037,2]
[370357428,1751977872492,-1588.71,0.00025037,2]
[370357429,1751977872501,-460.0,0.00025037,2]
[370357430,1751977872511,-460.0,0.00025037,2]
[370357431,1751977872520,-1121.03,0.00025037,2]
[370357432,1751977872529,-1333.75,0.00025037,2]
[370357433,1751977872539,-574.86,0.00025037,2]
[370357434,1751977872548,-1228.26,0.00025037,2]
[370357435,1751977872557,-957.54,0.00025037,2]
[370357436,1751977872567,-460.0,0.00025037,2]
[370357437,1751977872576,-688.19,0.00025037,2]
[370357438,1751977872585,-460.0,0.00025037,2]
[370357439,1751977872594,-942.31,0.00025037,2]
[370357440,1751977872603,-460.0,0.00025037,2]
[370357441,1751977872613,-1653.97,0.00025037,2]
[370357442,1751977872622,-729.41,0.00025037,2]
[370357443,1751977872632,-1764.18,0.00025037,2]
[370357444,1751977872641,-1785.76879643,0.00025038,12]
[370357445,1751977872651,-151.0,0.00025038,7]
[370357446,1751977872661,-151.0,0.00025038,7]
[370357447,1751977872671,-151.0,0.00025038,7]
[370357448,1751977872680,-151.0,0.00025038,7]
[370357449,1751977872690,-151.0,0.00025038,7]
[370357450,1751977872699,-151.0,0.00025038,7]
[370357451,1751977872709,-151.0,0.00025038,7]
[370357452,1751977872718,-151.0,0.00025038,7]
[370357453,1751977872727,-151.0,0.00025038,7]
[370357454,1751977872737,-151.0,0.00025038,7]
[370357455,1751977872746,-151.0,0.00025038,7]
[370357456,1751977872756,-151.0,0.00025038,7]
[370357457,1751977872765,-151.0,0.00025038,7]
[370357458,1751977872773,-2311.674624,0.00025038,7]
[370357459,1751977872783,-2311.674624,0.00025038,7]
[370357460,1751977872793,-320.45471,0.00025038,7]
[370357461,1751977872803,-320.45471,0.00025038,7]
[370357462,1751977872815,-501.98395154,0.00025073,2]
[370357463,1751977872825,-507.42206311,0.00025073,2]
[370357464,1751977872835,-205.6546453,0.00025073,2]
[370357465,1751977872845,-550.74755828,0.00025073,2]
[370357466,1751977872855,-500.0,0.00025073,2]
[370357467,1751977872865,-500.0,0.00025073,2]
[370357468,1751977872874,-500.0,0.00025073,2]
[370357469,1751977872885,-500.0,0.00025073,2]
[370357470,1751977872895,-500.0,0.00025073,2]
[370357471,1751977872905,-608.43587559,0.00025073,2]
[370357472,1751977872915,-500.32642056,0.00025073,2]
[370357473,1751977872926,-500.0,0.00025073,2]
[370357474,1751977872937,-498.84169488,0.00025073,2]
[370357475,1751977872947,-188.91198768,0.00025073,2]
[370357476,1751977872956,-500.0,0.00025073,2]
[370357477,1751977872966,-370.96221989,0.00025073,2]
[370357478,1751977872976,-500.0,0.00025073,2]
[370357479,1751977872985,-500.0,0.00025073,2]
[370357480,1751977872994,-504.55339788,0.00025073,2]
[370357481,1751977873003,-500.0,0.00025073,2]
[370357482,1751977873014,-500.0,0.00025073,2]
[370357483,1751977873023,-500.85111625,0.00025073,2]
[370357484,1751977873033,-500.0,0.00025073,2]
[370357485,1751977873045,-500.56210589,0.00025073,2]
[370357486,1751977873054,-152.9405,0.00025073,7]
[370357487,1751977873063,-151.0,0.00025073,7]
[370357488,1751977873073,-151.0,0.00025073,7]
[370357489,1751977873083,-312.486578,0.00025073,7]
[370357490,1751977873092,-312.486578,0.00025073,7]
[370357491,1751977873101,-200.0,0.00025119,2]
[370357492,1751977873110,-158.573263,0.00025123,7]
[370357493,1751977873119,-151.0,0.00025123,7]
[370357494,1751977873128,-151.0,0.00025123,7]
[370357495,1751977873137,-151.0,0.00025123,7]
[370357496,1751977873146,-151.0,0.00025123,7]
[370357497,1751977873156,-460.0,0.00025123,2]
[370357498,1751977873165,-460.0,0.00025123,2]
[370357499,1751977873174,-460.0,0.00025123,2]
[370357500,1751977873184,-460.0,0.00025123,2]
[370357501,1751977873193,-460.45,0.00025123,2]
[370357502,1751977873202,-460.0,0.00025123,2]
[370357503,1751977873211,-460.0,0.00025123,2]
[370357504,1751977873220,-478.07204671,0.00025123,2]
[370357505,1751977873230,-460.0,0.00025123,2]
[370357506,1751977873239,-460.0,0.00025123,2]
[370357507,1751977873249,-460.0,0.00025123,2]
[370357508,1751977873258,-460.0,0.00025123,2]
[370357509,1751977873267,-460.0,0.00025123,2]
[370357510,1751977873276,-460.0,0.00025123,2]
[370357511,1751977873286,-496.47,0.00025123,2]
[370357512,1751977873295,-460.0,0.00025123,2]
[370357513,1751977873305,-477.95,0.00025123,2]
[370357514,1751977873314,-723.18,0.00025123,2]
[370357515,1751977873323,-695.59,0.00025123,2]
[370357516,1751977873332,-460.0,0.00025123,2]
[370357517,1751977873342,-460.0,0.00025123,2]
[370357518,1751977873351,-460.0,0.00025123,2]
[370357519,1751977873360,-460.0,0.00025123,2]
[370357520,1751977873369,-460.0,0.00025123,2]
[370357521,1751977873379,-460.0,0.00025123,2]
[370357522,1751977873388,-524.14,0.00025123,2]
[370357523,1751977873397,-460.0,0.00025123,2]
[370357524,1751977873407,-460.0,0.00025123,2]
[370357525,1751977873416,-460.0,0.00025123,2]
[370357526,1751977873426,-460.0,0.00025123,2]
[370357527,1751977873435,-652.1,0.00025123,2]
[370357528,1751977873444,-460.0,0.00025123,2]
[370357529,1751977873454,-502.24,0.00025123,2]
[370357530,1751977873463,-460.0,0.00025123,2]
[370357531,1751977873473,-151.0,0.00025123,7]
[370357532,1751977873484,-460.0,0.00025123,2]
[370357533,1751977873493,-460.0,0.00025123,2]
[370357534,1751977873502,-460.0,0.00025123,2]
[370357535,1751977873512,-460.0,0.00025123,2]
[370357536,1751977873521,-460.0,0.00025123,2]
[370357537,1751977873531,-460.0,0.00025123,2]
[370357538,1751977873541,-661.62,0.00025123,2]
[370357539,1751977873551,-1822.488531,0.00025123,7]
[370357540,1751977873560,-151.0,0.00025123,7]
[370357541,1751977873569,-1822.488531,0.00025123,7]
[370357542,1751977873579,-460.0,0.00025123,2]
[370357543,1751977873589,-460.0,0.00025123,2]
[370357544,1751977873598,-460.0,0.00025123,2]
[370357545,1751977873608,-460.0,0.00025123,2]
[370357546,1751977873617,-1047.12,0.00025123,2]
[370357547,1751977873627,-460.0,0.00025123,2]
[370357548,1751977873637,-460.0,0.00025123,2]
[370357549,1751977873647,-460.0,0.00025123,2]
[370357550,1751977873656,-460.0,0.00025123,2]
[370357551,1751977873666,-460.0,0.00025123,2]
[370357552,1751977873676,-617.65,0.00025123,2]
[370357553,1751977873685,-460.0,0.00025123,2]
[370357554,1751977873694,-460.0,0.00025123,2]
[370357555,1751977873704,-460.0,0.00025123,2]
[370357556,1751977873713,-460.0,0.00025123,2]
[370357557,1751977873723,-603.35,0.00025123,2]
[370357558,1751977873733,-460.0,0.00025123,2]
[370357559,1751977873742,-460.0,0.00025123,2]
[370357560,1751977873752,-460.0,0.00025123,2]
[370357561,1751977873761,-254.197176,0.00025123,7]
[370357562,1751977873771,-254.197176,0.00025123,7]
[370357563,1751977873780,-203.059213,0.00025123,7]
[370357564,1751977873789,-774.14,0.00025123,2]
[370357565,1751977873798,-203.059213,0.00025123,7]
[370357566,1751977873808,-460.0,0.00025123,2]
[370357567,1751977873817,-460.0,0.00025123,2]
[370357568,1751977873827,-460.0,0.00025123,2]
[370357569,1751977873836,-151.0,0.00025123,7]
[370357570,1751977873845,-460.0,0.00025123,2]
[370357571,1751977873855,-529.76,0.00025123,2]
[370357572,1751977873864,-460.0,0.00025123,2]
[370357573,1751977873873,-460.0,0.00025123,2]
[370357574,1751977873883,-526.34,0.00025123,2]
[370357575,1751977873892,-200.919149,0.00025123,7]
[370357576,1751977873901,-460.0,0.00025123,2]
[370357577,1751977873911,-200.919149,0.00025123,7]
[370357578,1751977873920,-460.0,0.00025123,2]
[370357579,1751977873929,-460.0,0.00025123,2]
[370357580,1751977873939,-460.0,0.00025123,2]
[370357581,1751977873948,-630.32,0.00025123,2]
[370357582,1751977873957,-460.0,0.00025123,2]
[370357583,1751977873967,-460.0,0.00025123,2]
[370357584,1751977873976,-460.0,0.00025123,2]
[370357585,1751977873985,-460.0,0.00025123,2]
[370357586,1751977873995,-474.96595773,0.00025123,2]
[370357587,1751977874004,-460.0,0.00025123,2]
[370357588,1751977874014,-460.0,0.00025123,2]
[370357589,1751977874025,-460.0,0.00025123,2]
[370357590,1751977874037,-460.0,0.00025123,2]
[370357591,1751977874047,-551.84,0.00025123,2]
[370357592,1751977874056,-182.5956,0.00025123,7]
[370357593,1751977874066,-182.5956,0.00025123,7]
[370357594,1751977874078,-382.0,0.0002513,2]
[370357595,1751977874088,-460.0,0.00025138,2]
[370357596,1751977874099,-460.0,0.00025138,2]
[370357597,1751977874112,-460.0,0.00025138,2]
[370357598,1751977874123,-460.0,0.00025138,2]
[370357599,1751977874132,-647.05,0.00025138,2]
[370357600,1751977874142,-460.0,0.00025138,2]
[370357601,1751977874152,-460.0,0.00025138,2]
[370357602,1751977874163,-460.0,0.00025138,2]
[370357603,1751977874172,-448.0,0.00025141,2]
[370357604,1751977874183,-993.0,0.00025141,2]
[370357605,1751977874193,-500.0,0.00025141,2]
[370357606,1751977874203,-500.0,0.00025141,2]
[370357607,1751977874213,-500.0,0.00025141,2]
[370357608,1751977874224,-204.9622162,0.00025141,2]
[370357609,1751977874235,-500.0,0.00025141,2]
[370357610,1751977874245,-167.27,0.00025146,2]
[370357611,1751977874255,-460.0,0.00025205,2]
[370357612,1751977874264,-460.0,0.00025205,2]
[370357613,1751977874273,-460.0,0.00025205,2]
[370357614,1751977874282,-460.0,0.00025205,2]
[370357615,1751977874292,-480.71,0.00025205,2]
[370357616,1751977874301,-460.0,0.00025205,2]
[370357617,1751977874310,-460.0,0.00025205,2]
[370357618,1751977874319,-460.0,0.00025205,2]
[370357619,1751977874329,-460.0,0.00025205,2]
[370357620,1751977874338,-497.7,0.00025205,2]
[370357621,1751977874347,-460.0,0.00025205,2]
[370357622,1751977874357,-531.67,0.00025205,2]
[370357623,1751977874367,-537.17,0.00025205,2]
[370357624,1751977874378,-460.0,0.00025205,2]
[370357625,1751977874389,-588.31,0.00025205,2]
[370357626,1751977874398,-460.0,0.00025205,2]
[370357627,1751977874408,-460.0,0.00025205,2]
[370357628,1751977874417,-906.16,0.00025205,2]
[370357629,1751977874427,-460.0,0.00025205,2]
[370357630,1751977874436,-460.0,0.00025205,2]
[370357631,1751977874446,-460.0,0.00025205,2]
[370357632,1751977874455,-460.0,0.00025205,2]
[370357633,1751977874464,-690.14,0.00025205,2]
[370357634,1751977874474,-460.0,0.00025205,2]
[370357635,1751977874485,-528.9,0.00025205,2]
[370357636,1751977874494,-721.25,0.00025205,2]
[370357637,1751977874504,-460.0,0.00025205,2]
[370357638,1751977874513,-460.0,0.00025205,2]
[370357639,1751977874523,-1102.4,0.00025205,2]
[370357640,1751977874533,-2050.15,0.00025205,2]
[370357641,1751977874543,-4182.31,0.00025205,2]
[370357642,1751977874552,-460.0,0.00025205,2]
[370357643,1751977874561,-460.0,0.00025205,2]
[370357644,1751977874571,-701.78,0.00025205,2]
[370357645,1751977874580,-721.99,0.00025205,2]
[370357646,1751977874590,-1762.2,0.00025205,2]
[370357647,1751977874599,-460.0,0.00025205,2]
[370357648,1751977874609,-460.0,0.00025205,2]
[370357649,1751977874619,-800.39,0.00025205,2]
[370357650,1751977874629,-648.69,0.00025205,2]
[370357651,1751977874638,-3458.67,0.00025205,2]
[370357652,1751977874648,-277.45102267,0.00025205,2]
[370357653,1751977874659,-4299.44,0.00025205,2]
[370357654,1751977874669,-3637.12,0.00025205,2]
[370357655,1751977874678,-1000.0,0.00025205,2]
[370357656,1751977874687,-1522.56,0.00025205,2]
[370357657,1751977874696,-3636.58,0.00025205,2]
[370357658,1751977874705,-460.0,0.00025205,2]
[370357659,1751977874714,-690.08,0.00025205,2]
[370357660,1751977874724,-4579.55,0.00025205,2]
[370357661,1751977874734,-697.56,0.00025205,2]
[370357662,1751977874743,-683.42,0.00025205,2]
[370357663,1751977874752,-832.58,0.00025205,2]
[370357664,1751977874762,-591.26,0.00025205,2]
[370357665,1751977874771,-460.0,0.00025205,2]
[370357666,1751977874780,-5457.74,0.00025205,2]
[370357667,1751977874789,-874.68,0.00025205,2]
[370357668,1751977874798,-927.1,0.00025205,2]
[370357669,1751977874807,-1985.18,0.00025205,2]
[370357670,1751977874817,-1217.19,0.00025205,2]
[370357671,1751977874826,-738.85,0.00025205,2]
[370357672,1751977874835,-1208.76,0.00025205,2]
[370357673,1751977874844,-642.78,0.00025205,2]
[370357674,1751977874853,-1678.01,0.00025205,2]
[370357675,1751977874862,-679.99,0.00025205,2]
[370357676,1751977874871,-576.81,0.00025205,2]
[370357677,1751977874880,-837.47,0.00025205,2]
[370357678,1751977874889,-1800.05,0.00025205,2]
[370357679,1751977874899,-460.0,0.00025205,2]
[370357680,1751977874907,-764.92,0.00025205,2]
[370357681,1751977874917,-1022.14,0.00025205,2]
[370357682,1751977874926,-460.0,0.00025205,2]
[370357683,1751977874935,-560.17,0.00025205,2]
[370357684,1751977874944,-3491.4,0.00025205,2]
[370357685,1751977874954,-2139.4,0.00025205,2]
[370357686,1751977874963,-634.52,0.00025205,2]
[370357687,1751977874973,-460.0,0.00025205,2]
[370357688,1751977874983,-572.3,0.00025205,2]
[370357689,1751977874992,-609.97,0.00025205,2]
[370357690,1751977875002,-491.63,0.00025205,2]
[370357691,1751977875012,-959.08,0.00025205,2]
[370357692,1751977875022,-5403.24,0.00025205,2]
[370357693,1751977875034,-460.0,0.00025205,2]
[370357694,1751977875045,-519.94,0.00025205,2]
[370357695,1751977875054,-578.19,0.00025205,2]
[370357696,1751977875064,-460.0,0.00025205,2]
[370357697,1751977875074,-2063.49,0.00025205,2]
[370357698,1751977875084,-460.0,0.00025205,2]
[370357699,1751977875093,-460.0,0.00025205,2]
[370357700,1751977875103,-632.23,0.00025205,2]
[370357701,1751977875112,-1529.85,0.00025205,2]
[370357702,1751977875121,-460.0,0.00025205,2]
[370357703,1751977875131,-36525.31,0.00025205,2]
[370357704,1751977875140,-460.0,0.00025205,2]
[370357705,1751977875150,-460.0,0.00025205,2]
[370357706,1751977875159,-1034.4,0.00025205,2]
[370357707,1751977875169,-460.0,0.00025205,2]
[370357708,1751977875178,-788.23,0.00025205,2]
[370357709,1751977875187,-460.0,0.00025205,2]
[370357710,1751977875197,-793.65,0.00025205,2]
[370357711,1751977875206,-520.16784852,0.00025205,2]
[370357712,1751977875215,-3099.45,0.00025205,2]
[370357713,1751977875225,-460.0,0.00025205,2]
[370357714,1751977875236,-460.0,0.00025205,2]
[370357715,1751977875245,-460.0,0.00025205,2]
[370357716,1751977875254,-460.0,0.00025205,2]
[370357717,1751977875263,-460.0,0.00025205,2]
[370357718,1751977875273,-460.0,0.00025208,2]
[370357719,1751977875282,-460.0,0.00025208,2]
[370357720,1751977875292,-460.0,0.00025208,2]
[370357721,1751977875301,-460.0,0.00025208,2]
[370357722,1751977875311,-460.0,0.00025208,2]
[370357723,1751977875320,-762.66,0.00025208,2]
[370357724,1751977875329,-460.0,0.00025208,2]
[370357725,1751977875339,-460.0,0.00025208,2]
[370357726,1751977875349,-824.84,0.00025208,2]
[370357727,1751977875358,-958.32,0.00025208,2]
[370357728,1751977875370,-460.0,0.00025208,2]
[370357729,1751977875380,-2256.68,0.00025208,2]
[370357730,1751977875390,-460.0,0.00025208,2]
[370357731,1751977875399,-460.0,0.00025208,2]
[370357732,1751977875409,-460.0,0.00025208,2]
[370357733,1751977875419,-660.39,0.00025208,2]
[370357734,1751977875429,-185.63504472,0.00025208,2]
[370357735,1751977875439,-460.0,0.00025208,2]
[370357736,1751977875449,-857.09,0.00025208,2]
[370357737,1751977875458,-876.43,0.00025208,2]
[370357738,1751977875467,-589.94,0.00025208,2]
[370357739,1751977875477,-703.16,0.00025208,2]
[370357740,1751977875487,-883.99,0.00025208,2]
[370357741,1751977875496,-1034.06,0.00025208,2]
[370357742,1751977875696,-460.0,0.00025208,2]
[370357743,1751977875712,-830.44,0.00025208,2]
[370357744,1751977875723,-460.0,0.00025208,2]
[370357745,1751977875732,-1398.95,0.00025208,2]
[370357746,1751977875742,-460.0,0.00025208,2]
[370357747,1751977875751,-1090.59,0.00025208,2]
[370357748,1751977875761,-1334.68,0.00025208,2]
[370357749,1751977875770,-460.0,0.00025209,2]
[370357750,1751977875780,-536.21,0.00025209,2]
[370357751,1751977875789,-460.0,0.00025209,2]
[370357752,1751977875799,-460.0,0.00025209,2]
[370357753,1751977875811,-460.0,0.00025209,2]
[370357754,1751977875822,-460.0,0.00025209,2]
[370357755,1751977875832,-460.0,0.00025209,2]
[370357756,1751977875842,-549.83,0.00025209,2]
[370357757,1751977875855,-595.238465,0.00025209,7]
[370357758,1751977875864,-595.238465,0.00025209,7]
[370357759,1751977875875,-151.0,0.00025209,7]
[370357760,1751977875884,-151.0,0.00025209,7]
[370357761,1751977875894,-977.332697,0.00025209,7]
[370357762,1751977875905,-977.332697,0.00025209,7]
[370357763,1751977875915,-460.0,0.00025209,2]
[370357764,1751977875926,-151.0,0.00025209,7]
[370357765,1751977875935,-151.0,0.00025209,7]
[370357766,1751977875946,-151.0,0.00025209,7]
[370357767,1751977875955,-151.0,0.00025209,7]
[370357768,1751977875966,-154.776071,0.00025209,7]
[370357769,1751977875976,-717.05,0.00025209,2]
[370357770,1751977875986,-1302.32,0.00025209,2]
[370357771,1751977875995,-901.06,0.00025209,2]
[370357772,1751977876005,-151.0,0.00025209,7]
[370357773,1751977876014,-151.0,0.00025209,7]
[370357774,1751977876023,-460.0,0.00025209,2]
[370357775,1751977876035,-460.0,0.00025209,2]
[370357776,1751977876046,-151.0,0.00025209,7]
[370357777,1751977876057,-460.0,0.00025209,2]
[370357778,1751977876067,-460.0,0.00025209,2]
[370357779,1751977876077,-598.84,0.00025209,2]
[370357780,1751977876088,-1179.01,0.00025209,2]
[370357781,1751977876097,-742.0,0.00025209,2]
[370357782,1751977876106,-151.0,0.00025209,7]
[370357783,1751977876117,-1403.03,0.00025209,2]
[370357784,1751977876127,-460.0,0.00025209,2]
[370357785,1751977876136,-151.0,0.00025209,7]
[370357786,1751977876145,-460.0,0.00025209,2]
[370357787,1751977876154,-151.0,0.00025209,7]
[370357788,1751977876163,-734.68,0.00025209,2]
[370357789,1751977876172,-738.32,0.00025209,2]
[370357790,1751977876182,-234.555655,0.00025209,7]
[370357791,1751977876191,-234.555655,0.00025209,7]
[370357792,1751977876200,-460.0,0.00025209,2]
[370357793,1751977876210,-460.0,0.00025209,2]
[370357794,1751977876219,-460.0,0.00025209,2]
[370357795,1751977876228,-787.15,0.00025209,2]
[370357796,1751977876239,-1739.89,0.00025209,2]
[370357797,1751977876248,-719.3,0.00025209,2]
[370357798,1751977876257,-151.0,0.00025209,7]
[370357799,1751977876267,-523.08,0.00025209,2]
[370357800,1751977876276,-235.75164,0.00025209,7]
[370357801,1751977876288,-530.464929,0.00025209,7]
[370357802,1751977876297,-1063.22,0.00025209,2]
[370357803,1751977876306,-530.464929,0.00025209,7]
[370357804,1751977876316,-511.64,0.00025209,2]
[370357805,1751977876328,-151.0,0.00025209,7]
[370357806,1751977876337,-1091.4,0.00025209,2]
[370357807,1751977876346,-460.0,0.00025209,2]
[370357808,1751977876356,-151.0,0.00025209,7]
[370357809,1751977876366,-636.04,0.00025209,2]
[370357810,1751977876376,-460.0,0.00025209,2]
[370357811,1751977876385,-702.92,0.00025209,2]
[370357812,1751977876396,-1152.16,0.00025209,2]
[370357813,1751977876406,-875.65,0.00025209,2]
[370357814,1751977876415,-151.0,0.00025209,7]
[370357815,1751977876425,-521.59,0.00025209,2]
[370357816,1751977876434,-176.358056,0.00025209,7]
[370357817,1751977876444,-654.08,0.00025209,2]
[370357818,1751977876453,-176.358056,0.00025209,7]
[370357819,1751977876463,-460.0,0.00025209,2]
[370357820,1751977876472,-2030.83,0.00025209,2]
[370357821,1751977876482,-1024.51,0.00025209,2]
[370357822,1751977876491,-567.15,0.00025209,2]
[370357823,1751977876501,-460.0,0.00025209,2]
[370357824,1751977876510,-151.0,0.00025209,7]
[370357825,1751977876520,-747.34,0.00025209,2]
[370357826,1751977876529,-151.0,0.00025209,7]
[370357827,1751977876539,-952.8,0.00025209,2]
[370357828,1751977876549,-151.0,0.00025209,7]
[370357829,1751977876558,-671.89,0.00025209,2]
[370357830,1751977876568,-151.0,0.00025209,7]
[370357831,1751977876577,-151.0,0.00025209,7]
[370357832,1751977876586,-467.64,0.00025209,2]
[370357833,1751977876596,-768.4,0.00025209,2]
[370357834,1751977876605,-531.37,0.00025209,2]
[370357835,1751977876615,-581.91,0.00025209,2]
[370357836,1751977876624,-460.0,0.00025209,2]
[370357837,1751977876634,-460.0,0.00025209,2]
[370357838,1751977876646,-474.1,0.00025209,2]
[370357839,1751977876655,-536.04,0.00025209,2]
[370357840,1751977876668,-467.87,0.00025209,2]
[370357841,1751977876679,-460.0,0.00025209,2]
[370357842,1751977876690,-151.0,0.00025209,7]
[370357843,1751977876701,-297909.16437414,0.00025209,2]
[370357844,1751977876711,-600.0,0.00025238,2]
[370357845,1751977876723,-600.0,0.00025238,2]
[370357846,1751977876734,-351.17161363,0.00025238,2]
[370357847,1751977876743,-1785.76879643,0.00025245,12]
[370357848,1751977876752,-590.19284475,0.00025249,2]
[370357849,1751977876762,-460.0,0.00025266,2]
[370357850,1751977876772,-155.52,0.00025301,2]
[370357851,1751977876783,-460.0,0.00025307,2]
[370357852,1751977876793,-460.0,0.00025307,2]
[370357853,1751977876802,-460.0,0.00025307,2]
[370357854,1751977876812,-460.0,0.00025307,2]
[370357855,1751977876821,-861.38,0.00025307,2]
[370357856,1751977876831,-807.78,0.00025307,2]
[370357857,1751977876840,-807.78,0.00025307,2]
[370357858,1751977876850,-1158.3,0.00025307,2]
[370357859,1751977876859,-460.0,0.00025307,2]
[370357860,1751977876869,-460.0,0.00025307,2]
[370357861,1751977876878,-483.14,0.00025307,2]
[370357862,1751977876889,-460.0,0.00025307,2]
[370357863,1751977876899,-1389.27,0.00025307,2]
[370357864,1751977876908,-500.0,0.00025307,2]
[370357865,1751977876918,-6398.76,0.00025307,2]
[370357866,1751977876927,-475.45,0.00025307,2]
[370357867,1751977876937,-460.0,0.00025307,2]
[370357868,1751977876946,-547.71,0.00025307,2]
[370357869,1751977876956,-2842.22,0.00025307,2]
[370357870,1751977876965,-460.0,0.00025307,2]
[370357871,1751977876975,-460.0,0.00025307,2]
[370357872,1751977876985,-498.22,0.00025307,2]
[370357873,1751977876994,-678.78,0.00025307,2]
[370357874,1751977877004,-713.93,0.00025307,2]
[370357875,1751977877013,-460.0,0.00025307,2]
[370357876,1751977877024,-531.99,0.00025307,2]
[370357877,1751977877035,-985.42,0.00025307,2]
[370357878,1751977877048,-714.53,0.00025307,2]
[370357879,1751977877059,-460.0,0.00025307,2]
[370357880,1751977877069,-460.0,0.00025307,2]
[370357881,1751977877078,-3587.44,0.00025307,2]
[370357882,1751977877088,-755.01,0.00025307,2]
[370357883,1751977877098,-874.38,0.00025307,2]
[370357884,1751977877109,-783.63,0.00025307,2]
[370357885,1751977877119,-1239.81,0.00025307,2]
[370357886,1751977877129,-460.0,0.00025307,2]
[370357887,1751977877139,-728.76,0.00025307,2]
[370357888,1751977877148,-732.05,0.00025307,2]
[370357889,1751977877158,-460.0,0.00025307,2]
[370357890,1751977877168,-460.0,0.00025307,2]
[370357891,1751977877177,-3185.82,0.00025307,2]
[370357892,1751977877186,-506.47,0.00025307,2]
[370357893,1751977877196,-1214.43,0.00025307,2]
[370357894,1751977877205,-442.26044866,0.00025307,2]
[370357895,1751977877935,-302.99687352,0.00024657,2]
[370357896,1751977877947,-157.00312648,0.00024657,2]
[370357897,1751977877958,-485.99955134,0.00025307,2]
[370357898,1751977877968,-262.83510898,0.00025307,2]
[370357899,1751977878171,-460.0,0.00024657,2]
[370357900,1751977878181,-49.71888131,0.00024657,2]
[370357901,1751977878696,-410.28111869,0.00024657,2]
[370357902,1751977878705,-112.21888131,0.00024657,2]
[370357903,1751977878720,-347.78111869,0.00024657,2]
[370357904,1751977878730,-26.94851058,0.00024661,2]
[370357905,1751977878742,-293.80853246,0.00024661,2]
[370357906,1751977878753,-139.24295696,0.00024661,2]
[370357907,1751977878762,-287.9413284,0.00024762,2]